bitfinex/quotes_SOLUSD_20240712
["timestamp","ask_amount","ask_price","bid_price","bid_amount"]
[1720828206079,11.56,139.6,139.55,9.97538127]
[1720828206257,11.56,139.56,139.55,5.0158]
[1720828206465,11.56,139.56,139.54,5.0164]
[1720828206861,11.56,139.55,139.54,5.0164]
[1720828211165,11.56,139.55,139.53,9.97538127]
[1720828211663,11.56,139.55,139.53,14.99218127]
[1720828212774,5.0154,139.57,139.53,14.99218127]
[1720828213289,5.0154,139.57,139.54,5.0164]
[1720828213667,5.0154,139.57,139.53,14.99208127]
[1720828215685,53.73924798,139.6,139.53,9.97538127]
[1720828215686,7.49924798,139.6,139.53,9.97538127]
[1720828215876,11.56,139.57,139.55,5.016]
[1720828216386,11.56,139.56,139.54,5.0164]
[1720828217781,11.56,139.57,139.54,5.0164]
[1720828218670,5.0148,139.59,139.55,5.016]
[1720828218865,11.56,139.57,139.55,5.016]
[1720828221190,11.56,139.57,139.54,5.0163]
[1720828221976,16.575,139.58,139.54,5.0163]
[1720828222582,11.56,139.57,139.54,5.0163]
[1720828222785,11.56,139.57,139.53,14.99208127]
[1720828223101,16.5758,139.56,139.53,9.97538127]
[1720828223467,5.0158,139.56,139.53,9.97538127]
[1720828223668,5.0158,139.56,139.53,14.99218127]
[1720828224179,5.0155,139.57,139.53,14.99218127]
[1720828224391,5.0151,139.58,139.54,5.0164]
[1720828224571,11.56,139.57,139.54,5.0164]
[1720828225690,5.0151,139.58,139.54,5.0164]
[1720828225875,5.0151,139.58,139.53,9.97538127]
[1720828225876,11.56,139.56,139.53,14.99208127]
[1720828228679,11.56,139.56,139.54,5.0164]
[1720828230177,11.56,139.56,139.54,6.44953443]
[1720828230382,11.56,139.56,139.55,5.0161]
[1720828230584,11.56,139.56,139.54,5.0163]
[1720828231096,11.56,139.56,139.54,6.44827873]
[1720828231786,5.0151,139.58,139.54,5.0163]
[1720828232098,11.56,139.57,139.54,5.0163]
[1720828233101,5.0148,139.59,139.55,14.99138127]
[1720828233289,11.56,139.58,139.55,14.99138127]
[1720828235890,5.0148,139.59,139.55,14.99138127]
[1720828236101,11.56,139.58,139.55,14.99138127]
[1720828236481,16.5751,139.58,139.55,9.97538127]
[1720828242107,16.5751,139.58,139.55,14.99138127]
[1720828243307,5.0151,139.58,139.55,14.99138127]
[1720828243820,16.5748,139.59,139.55,14.99138127]
[1720828244725,5.0151,139.58,139.55,9.97538127]
[1720828245718,5.0151,139.58,139.55,14.99138127]
[1720828247011,21.56,139.59,139.55,9.97538127]
[1720828247227,5.0154,139.57,139.55,9.97538127]
[1720828247623,5.0151,139.58,139.55,9.97538127]
[1720828248802,5.0151,139.58,139.55,14.99138127]
[1720828250003,16.5751,139.58,139.55,14.99138127]
[1720828251219,5.0148,139.59,139.55,14.99138127]
[1720828251520,16.5748,139.59,139.55,14.99138127]
[1720828251707,5.0148,139.59,139.55,14.99138127]
[1720828251909,16.5748,139.59,139.55,14.99138127]
[1720828253822,5.0148,139.59,139.55,14.99138127]
[1720828254023,16.5748,139.59,139.55,14.99138127]
[1720828255198,5.0148,139.59,139.55,14.99138127]
[1720828255411,16.5748,139.59,139.55,14.99138127]
[1720828259520,5.015,139.58,139.55,14.99138127]
[1720828260211,5.015,139.58,139.55,9.97538127]
[1720828262102,5.0148,139.59,139.55,14.99138127]
[1720828262309,0.04261087,139.61,139.58,9.97538127]
[1720828262508,0.04261087,139.61,139.58,21.53538127]
[1720828262725,0.04261087,139.61,139.6,9.97538127]
[1720828263318,0.04261087,139.61,139.58,21.53538127]
[1720828263521,0.04261087,139.61,139.58,26.55018127]
[1720828263733,0.04261087,139.61,139.58,14.99018127]
[1720828264530,5.0146,139.6,139.58,9.97538127]
[1720828264757,16.5746,139.6,139.58,9.97538127]
[1720828265721,0.04261087,139.61,139.58,9.97538127]
[1720828266029,5.05661087,139.61,139.58,16.3656849]
[1720828266222,5.05661087,139.61,139.58,14.99038127]
[1720828266722,1.0,139.6,139.58,14.99038127]
[1720828266915,1.0,139.6,139.58,9.97538127]
[1720828267109,1.0,139.6,139.58,14.99028127]
[1720828269423,1.0,139.6,139.59,5.0146]
[1720828269729,1.0,139.6,139.59,16.5746]
[1720828272328,1.0,139.6,139.59,5.0146]
[1720828273028,1.0,139.6,139.58,14.99028127]
[1720828273251,1.0,139.6,139.59,5.0146]
[1720828273829,1.0,139.6,139.59,77.9333]
[1720828274127,1.0,139.6,139.59,32.9333]
[1720828274323,1.0,139.6,139.59,21.3733]
[1720828274530,1.0,139.6,139.59,32.9333]
[1720828275225,1.0,139.6,139.59,21.3733]
[1720828275631,1.0,139.6,139.59,32.9333]
[1720828275827,1.0,139.6,139.59,77.9333]
[1720828276031,1.0,139.6,139.59,32.9333]
[1720828276234,1.0,139.6,139.59,21.3733]
[1720828276434,1.0,139.6,139.59,32.9333]
[1720828278038,1.0,139.6,139.59,21.3733]
[1720828278235,1.0,139.6,139.59,32.9333]
[1720828280123,1.0,139.6,139.59,77.9333]
[1720828283650,1.0,139.6,139.59,5.0146]
[1720828284025,1.0,139.6,139.59,16.5746]
[1720828286545,1.0,139.6,139.59,61.5746]
[1720828290832,1.0,139.6,139.59,5.0146]
[1720828296930,1.0,139.6,139.59,16.5746]
[1720828297653,1.0,139.6,139.59,61.5746]
[1720828304140,1.0,139.6,139.59,50.0146]
[1720828304340,1.0,139.6,139.59,61.5746]
[1720828307160,1.0,139.6,139.59,16.5746]
[1720828310365,1.0,139.6,139.59,61.5746]
[1720828310759,1.0,139.6,139.59,81.5746]
[1720828311149,1.0,139.6,139.59,125.4383]
[1720828311356,0.04261087,139.61,139.6,14.98968127]
[1720828311547,0.04261087,139.61,139.6,139.22082454]
[1720828312167,0.04261087,139.61,139.6,137.78968127]
[1720828312872,0.04261087,139.61,139.6,138.60329632]
[1720828313075,0.04261087,139.61,139.6,137.78968127]
[1720828313279,0.04261087,139.61,139.6,159.33968127]
[1720828313450,0.8738885,139.62,139.61,5.0139]
[1720828313772,11.56,139.73,139.7,9.97538127]
[1720828313975,1.93796061,139.72,139.7,9.97538127]
[1720828314285,5.0098,139.73,139.7,9.97538127]
[1720828314446,6.94805597,139.72,139.7,9.97538127]
[1720828314648,16.5701,139.72,139.7,9.97538127]
[1720828315150,5.0093,139.74,139.7,14.98598127]
[1720828315347,1.93792111,139.73,139.7,14.98598127]
[1720828315548,5.009,139.75,139.71,5.0103]
[1720828315744,1.93788091,139.74,139.71,5.0103]
[1720828315943,1.93788091,139.74,139.7,14.98598127]
[1720828315944,16.5693,139.74,139.7,14.98598127]
[1720828316371,5.009,139.75,139.71,5.0103]
[1720828316565,40.1438885,139.76,139.72,5.0099]
[1720828316770,40.1438885,139.76,139.72,14.98528127]
[1720828317150,0.8738885,139.76,139.74,5.009]
[1720828317355,0.8738885,139.76,139.75,5.0089]
[1720828317555,0.8738885,139.76,139.74,14.98458127]
[1720828318372,0.8738885,139.76,139.74,9.97538127]
[1720828318771,0.8738885,139.76,139.73,5.0095]
[1720828318986,5.0089,139.75,139.72,9.97538127]
[1720828319160,11.56,139.74,139.72,9.97538127]
[1720828319791,16.5693,139.74,139.72,9.97538127]
[1720828319974,11.56,139.73,139.72,9.97538127]
[1720828320654,15.1989,139.74,139.72,9.97538127]
[1720828321076,11.56,139.73,139.72,9.97538127]
[1720828321694,26.7589,139.74,139.72,9.97538127]
[1720828321989,31.7683,139.74,139.72,9.97538127]
[1720828322863,11.56,139.75,139.73,5.0096]
[1720828323065,17.4423885,139.76,139.72,14.98508127]
[1720828323282,12.4338885,139.76,139.72,9.97538127]
[1720828323492,12.4338885,139.76,139.73,5.0096]
[1720828324167,0.8738885,139.76,139.73,5.0096]
[1720828326071,0.8738885,139.76,139.74,9.97538127]
[1720828330906,5.8824885,139.76,139.74,9.97538127]
[1720828331280,0.8738885,139.76,139.74,9.97538127]
[1720828332405,17.4424885,139.76,139.74,9.97538127]
[1720828332584,12.4338885,139.76,139.74,9.97538127]
[1720828334383,12.4338885,139.76,139.72,14.98528127]
[1720828334384,17.4424885,139.76,139.72,14.98528127]
[1720828334879,17.4424885,139.76,139.74,9.97538127]
[1720828335700,0.8738885,139.76,139.74,9.97538127]
[1720828337887,0.8738885,139.76,139.75,5.0089]
[1720828343820,0.8738885,139.76,139.75,16.5689]
[1720828344730,0.8738885,139.76,139.75,17.99971876]
[1720828345734,0.8738885,139.76,139.75,16.5689]
[1720828347020,0.8738885,139.76,139.75,17.9975393]
[1720828351619,0.8738885,139.76,139.75,62.9975393]
[1720828357407,0.8738885,139.76,139.75,61.5689]
[1720828359804,0.8738885,139.76,139.75,62.99954538]
[1720828360517,0.8738885,139.76,139.75,5.0089]
[1720828360719,0.8738885,139.76,139.75,16.5689]
[1720828360942,0.8738885,139.76,139.74,9.97538127]
[1720828361103,5.0089,139.75,139.74,9.97538127]
[1720828361308,17.4424885,139.76,139.72,14.98528127]
[1720828361504,5.009,139.75,139.72,9.97538127]
[1720828361724,11.56,139.75,139.72,14.98538127]
[1720828361908,5.0096,139.73,139.69,14.98608127]
[1720828362104,11.56,139.74,139.71,9.97538127]
[1720828362508,16.5694,139.74,139.71,9.97538127]
[1720828363043,11.56,139.74,139.71,9.97538127]
[1720828363206,26.7877,139.75,139.71,9.97538127]
[1720828363414,26.7877,139.75,139.72,5.0099]
[1720828363415,11.56,139.74,139.72,5.0099]
[1720828364844,11.56,139.74,139.71,14.98558127]
[1720828365940,11.56,139.74,139.72,5.0099]
[1720828366350,16.5694,139.74,139.71,9.97538127]
[1720828366546,16.5694,139.74,139.69,11.56]
[1720828366547,11.56,139.72,139.69,9.97538127]
[1720828367216,11.56,139.71,139.69,9.97538127]
[1720828367548,11.56,139.71,139.69,14.98618127]
[1720828367746,11.56,139.71,139.7,5.0107]
[1720828368120,11.56,139.71,139.69,14.98628127]
[1720828368549,11.56,139.71,139.7,5.0107]
[1720828369945,11.56,139.71,139.69,9.97538127]
[1720828370338,11.56,139.71,139.69,14.98638127]
[1720828370645,11.56,139.71,139.7,5.0107]
[1720828372135,6.1521,139.73,139.7,5.0107]
[1720828372338,11.56,139.72,139.7,5.0107]
[1720828373360,11.56,139.72,139.69,14.98628127]
[1720828374553,11.1618,139.73,139.69,14.98628127]
[1720828374763,11.56,139.71,139.69,9.97538127]
[1720828375060,11.56,139.7,139.67,9.97538127]
[1720828377053,11.56,139.7,139.67,14.98678127]
[1720828378648,11.56,139.69,139.67,14.98678127]
[1720828379165,11.56,139.7,139.67,14.98678127]
[1720828383368,11.56,139.68,139.65,9.97538127]
[1720828383541,11.56,139.67,139.65,14.98778127]
[1720828384142,11.56,139.67,139.65,9.97538127]
[1720828384548,11.56,139.67,139.65,14.98778127]
[1720828384746,11.56,139.68,139.65,14.98778127]
[1720828384949,5.0108,139.7,139.66,5.0121]
[1720828385275,11.56,139.69,139.67,5.0117]
[1720828385864,11.56,139.7,139.67,5.0117]
[1720828386445,16.5707,139.7,139.66,5.012]
[1720828389662,5.0111,139.69,139.66,5.012]
[1720828390683,5.0111,139.69,139.65,26.54768127]
[1720828391695,11.56,139.7,139.66,5.0121]
[1720828391866,16.5708,139.7,139.67,9.97538127]
[1720828392064,5.0108,139.7,139.67,9.97538127]
[1720828392783,5.0108,139.7,139.67,14.98708127]
[1720828392985,16.5705,139.71,139.67,14.98708127]
[1720828393182,5.0107,139.7,139.67,9.97538127]
[1720828394290,11.56,139.71,139.67,14.98698127]
[1720828394291,5.0104,139.71,139.67,14.98698127]
[1720828394460,5.0104,139.71,139.69,9.97538127]
[1720828394655,5.0104,139.71,139.67,26.54698127]
[1720828395475,5.0096,139.73,139.7,9.97538127]
[1720828396187,5.0096,139.73,139.68,11.56]
[1720828396188,5.0103,139.71,139.68,14.98668127]
[1720828397687,16.5699,139.73,139.7,9.97538127]
[1720828398186,5.0099,139.73,139.7,9.97538127]
[1720828398567,5.0099,139.73,139.7,14.98608127]
[1720828398879,5.0094,139.74,139.72,9.97538127]
[1720828399464,16.569,139.75,139.72,9.97538127]
[1720828399685,5.009,139.75,139.72,9.97538127]
[1720828400076,5.0094,139.74,139.72,9.97538127]
[1720828404487,0.8738885,139.76,139.72,21.53538127]
[1720828404796,0.8738885,139.76,139.73,11.56]
[1720828405267,0.8738885,139.76,139.74,9.97538127]
[1720828405468,5.8825885,139.76,139.74,9.97538127]
[1720828407090,0.8738885,139.76,139.74,9.97538127]
[1720828407893,0.8738885,139.76,139.74,14.98448127]
[1720828408085,0.8738885,139.76,139.74,26.54448127]
[1720828409890,0.8738885,139.76,139.74,21.53538127]
[1720828410094,0.8738885,139.76,139.75,11.91792993]
[1720828412283,0.8738885,139.76,139.75,12.84371778]
[1720828414105,0.8738885,139.76,139.75,11.56]
[1720828416181,0.8738885,139.76,139.75,12.93614815]
[1720828417200,0.8738885,139.76,139.75,11.56]
[1720828422508,0.8738885,139.76,139.75,76.56]
[1720828423582,0.8738885,139.76,139.75,65.0]
[1720828424106,0.8738885,139.76,139.75,76.56]
[1720828424688,0.8738885,139.76,139.75,56.56]
[1720828424888,0.8738885,139.76,139.75,88.12]
[1720828425102,0.8738885,139.76,139.75,76.56]
[1720828426486,0.8738885,139.76,139.75,122.8]
[1720828427806,0.8738885,139.76,139.75,76.56]
[1720828429081,0.8738885,139.76,139.75,77.73532467]
[1720828429685,0.8738885,139.76,139.75,77.73543976]
[1720828430408,0.8738885,139.76,139.75,76.56]
[1720828431901,0.8738885,139.76,139.75,65.0]
[1720828432219,0.8738885,139.76,139.75,76.56]
[1720828432705,0.8738885,139.76,139.75,77.78986825]
[1720828433194,0.8738885,139.76,139.75,76.56]
[1720828435213,0.8738885,139.76,139.75,122.8]
[1720828435430,15.9082,139.86,139.83,9.97538127]
[1720828435593,15.9082,139.86,139.83,21.53538127]
[1720828436218,15.9082,139.86,139.83,9.97538127]
[1720828436406,20.9132,139.86,139.82,11.56]
[1720828436591,20.9132,139.86,139.81,21.53538127]
[1720828436592,32.4732,139.86,139.81,21.53538127]
[1720828436794,32.4732,139.86,139.81,9.97538127]
[1720828437125,32.4732,139.86,139.8,11.56]
[1720828437126,32.4733,139.86,139.83,9.97538127]
[1720828437318,20.9133,139.86,139.83,9.97538127]
[1720828437614,32.4733,139.86,139.81,21.53538127]
[1720828438607,20.9133,139.86,139.81,21.53538127]
[1720828441115,20.9133,139.86,139.83,9.97538127]
[1720828446116,6.5106,139.89,139.84,11.56]
[1720828447122,5.0045,139.88,139.84,11.56]
[1720828447601,5.0046,139.87,139.84,11.56]
[1720828449323,5.0046,139.87,139.83,9.97538127]
[1720828449534,5.0046,139.87,139.83,21.53538127]
[1720828450999,5.005,139.86,139.83,21.53538127]
[1720828451608,5.005,139.86,139.83,9.97538127]
[1720828452027,5.005,139.86,139.83,21.53538127]
[1720828452236,5.0054,139.85,139.83,9.97538127]
[1720828456328,5.0051,139.86,139.83,9.97538127]
[1720828457908,5.0051,139.86,139.81,9.97538127]
[1720828457909,5.0061,139.83,139.81,9.97538127]
[1720828458221,16.5661,139.83,139.81,9.97538127]
[1720828459225,11.56,139.83,139.81,9.97538127]
[1720828460539,5.0054,139.85,139.81,9.97538127]
[1720828460835,16.5654,139.85,139.81,9.97538127]
[1720828462127,5.0054,139.85,139.81,9.97538127]
[1720828462331,16.5654,139.85,139.81,9.97538127]
[1720828463941,5.0054,139.85,139.81,9.97538127]
[1720828464121,16.5654,139.85,139.81,9.97538127]
[1720828464324,11.56,139.84,139.81,9.97538127]
[1720828464944,11.56,139.83,139.81,9.97538127]
[1720828465537,11.56,139.83,139.79,9.97538127]
[1720828467531,11.56,139.84,139.79,21.53538127]
[1720828468536,11.56,139.84,139.81,9.97538127]
[1720828468738,11.56,139.85,139.81,9.97538127]
[1720828470815,32.0322,139.86,139.81,9.97538127]
[1720828471021,20.4722,139.86,139.81,9.97538127]
[1720828471231,16.565,139.86,139.81,21.53538127]
[1720828474022,16.565,139.86,139.81,9.97538127]
[1720828474221,16.565,139.86,139.81,21.53538127]
[1720828476049,46.01284634,139.9,139.83,9.97538127]
[1720828476224,16.5645,139.88,139.83,21.53538127]
[1720828476540,5.0045,139.88,139.83,21.53538127]
[1720828476857,5.0045,139.88,139.85,9.97538127]
[1720828478132,16.5645,139.88,139.85,9.97538127]
[1720828479021,16.5645,139.88,139.83,21.53538127]
[1720828479444,16.5645,139.88,139.83,9.97538127]
[1720828479637,5.0047,139.87,139.83,9.97538127]
[1720828479927,16.5647,139.87,139.83,9.97538127]
[1720828481256,11.56,139.87,139.83,9.97538127]
[1720828481937,5.005,139.86,139.83,9.97538127]
[1720828482132,16.565,139.86,139.83,9.97538127]
[1720828482489,16.5646,139.87,139.83,9.97538127]
[1720828486262,5.0043,139.88,139.83,9.97538127]
[1720828488364,26.0261885,139.9,139.83,9.97538127]
[1720828488565,6.93955869,139.89,139.83,21.53538127]
[1720828488753,16.564,139.89,139.86,9.97538127]
[1720828488957,5.004,139.89,139.84,9.97538127]
[1720828489269,27.4374885,139.9,139.85,11.56]
[1720828489460,1.93556993,139.89,139.85,11.56]
[1720828489663,5.0039,139.89,139.84,21.53538127]
[1720828489860,16.5639,139.89,139.87,9.97538127]
[1720828490574,15.8775885,139.9,139.87,9.97538127]
[1720828490755,11.56,139.89,139.87,9.97538127]
[1720828491971,16.5639,139.89,139.87,9.97538127]
[1720828492266,16.5639,139.89,139.85,9.97538127]
[1720828492765,11.56,139.88,139.85,9.97538127]
[1720828493143,10.8738885,139.9,139.85,9.97538127]
[1720828493463,11.56,139.87,139.85,9.97538127]
[1720828493850,15.8777885,139.9,139.85,9.97538127]
[1720828494039,11.56,139.89,139.85,9.97538127]
[1720828495345,0.8738885,139.9,139.86,11.56]
[1720828495868,0.8738885,139.9,139.87,9.97538127]
[1720828496951,17.4373885,139.9,139.87,9.97538127]
[1720828497743,11.56,139.89,139.87,9.97538127]
[1720828498757,17.4373885,139.9,139.87,9.97538127]
[1720828499364,0.8738885,139.9,139.87,9.97538127]
[1720828500771,12.4338885,139.9,139.87,9.97538127]
[1720828501065,0.8738885,139.9,139.87,9.97538127]
[1720828501247,12.4338885,139.9,139.87,9.97538127]
[1720828501447,17.4374885,139.9,139.87,9.97538127]
[1720828501660,5.0039,139.89,139.87,9.97538127]
[1720828501877,5.0046,139.87,139.83,9.97538127]
[1720828502185,5.005,139.86,139.83,9.97538127]
[1720828502873,11.56,139.87,139.85,9.97538127]
[1720828503057,16.5649,139.87,139.83,9.97538127]
[1720828503242,5.0049,139.87,139.83,9.97538127]
[1720828503447,0.8738885,139.9,139.85,9.97538127]
[1720828503675,26.5642,139.89,139.85,9.97538127]
[1720828503881,15.0042,139.89,139.85,9.97538127]
[1720828504168,5.0043,139.88,139.85,9.97538127]
[1720828505165,11.56,139.88,139.85,9.97538127]
[1720828506870,16.5643,139.88,139.85,9.97538127]
[1720828507356,11.56,139.88,139.85,9.97538127]
[1720828508176,16.564,139.89,139.85,9.97538127]
[1720828508474,5.0043,139.88,139.85,9.97538127]
[1720828508655,16.5643,139.88,139.85,9.97538127]
[1720828508971,16.5643,139.88,139.82,11.56]
[1720828508972,16.5643,139.88,139.83,9.97538127]
[1720828509269,5.005,139.86,139.83,9.97538127]
[1720828509866,16.565,139.86,139.83,9.97538127]
[1720828510674,11.56,139.85,139.83,9.97538127]
[1720828511167,11.56,139.86,139.83,9.97538127]
[1720828511754,16.565,139.86,139.83,9.97538127]
[1720828513479,11.56,139.86,139.83,9.97538127]
[1720828514062,16.565,139.86,139.83,9.97538127]
[1720828514267,11.56,139.85,139.83,9.97538127]
[1720828515487,11.56,139.84,139.81,9.97538127]
[1720828520063,10.0,139.85,139.83,9.97538127]
[1720828520263,11.56,139.84,139.83,9.97538127]
[1720828520463,10.0,139.85,139.83,9.97538127]
[1720828520464,21.56,139.85,139.83,9.97538127]
[1720828520986,10.0,139.85,139.83,9.97538127]
[1720828521187,26.5653,139.85,139.83,9.97538127]
[1720828521568,26.5653,139.85,139.81,9.97538127]
[1720828521768,5.0053,139.85,139.81,9.97538127]
[1720828522182,16.5653,139.85,139.81,9.97538127]
[1720828522974,5.0053,139.85,139.81,9.97538127]
[1720828523170,16.5653,139.85,139.81,9.97538127]
[1720828524860,5.0053,139.85,139.83,9.97538127]
[1720828525288,5.0057,139.84,139.83,9.97538127]
[1720828525891,16.5657,139.84,139.83,9.97538127]
[1720828526579,16.5659,139.84,139.81,9.97538127]
[1720828528469,16.5654,139.85,139.81,9.97538127]
[1720828528668,5.0054,139.85,139.83,9.97538127]
[1720828528966,10.0,139.87,139.83,9.97538127]
[1720828529180,13.49602726,139.86,139.83,9.97538127]
[1720828529480,16.5652,139.86,139.83,9.97538127]
[1720828530988,5.0055,139.85,139.83,9.97538127]
[1720828531194,5.0057,139.84,139.83,9.97538127]
[1720828531568,5.0057,139.84,139.81,9.97538127]
[1720828531887,16.5657,139.84,139.81,9.97538127]
[1720828532278,5.006,139.83,139.81,9.97538127]
[1720828532595,11.56,139.84,139.81,9.97538127]
[1720828532596,16.5658,139.84,139.81,9.97538127]
[1720828536885,11.56,139.84,139.81,9.97538127]
[1720828537389,16.5659,139.84,139.81,9.97538127]
[1720828537889,11.56,139.84,139.81,9.97538127]
[1720828538094,16.5663,139.83,139.79,9.97538127]
[1720828538678,11.56,139.82,139.79,9.97538127]
[1720828541090,26.5662,139.83,139.79,9.97538127]
[1720828542098,28.4764,139.87,139.81,9.97538127]
[1720828542099,11.56,139.84,139.81,9.97538127]
[1720828542512,10.0,139.85,139.81,9.97538127]
[1720828542696,10.0,139.85,139.81,21.53538127]
[1720828543284,15.0053,139.85,139.81,9.97538127]
[1720828543486,10.0,139.85,139.83,9.97538127]
[1720828544294,15.0053,139.85,139.83,9.97538127]
[1720828548109,5.0057,139.84,139.83,9.97538127]
[1720828559302,21.56,139.85,139.83,9.97538127]
[1720828559303,15.0054,139.85,139.83,9.97538127]
[1720828559512,26.5654,139.85,139.83,9.97538127]
[1720828559807,5.0057,139.84,139.83,9.97538127]
[1720828560217,26.5655,139.85,139.83,9.97538127]
[1720828561506,5.0055,139.85,139.83,9.97538127]
[1720828561716,5.0051,139.86,139.83,9.97538127]
[1720828563215,5.0053,139.85,139.83,9.97538127]
[1720828565911,5.0051,139.86,139.83,9.97538127]
[1720828568006,13.49590096,139.85,139.83,9.97538127]
[1720828568207,13.49590096,139.85,139.8,27.3443]
[1720828568208,11.56,139.85,139.81,9.97538127]
[1720828568718,16.5654,139.85,139.81,9.97538127]
[1720828569020,16.5654,139.85,139.83,9.97538127]
[1720828569716,5.0061,139.83,139.81,9.97538127]
[1720828570108,16.5658,139.84,139.81,9.97538127]
[1720828572316,11.56,139.84,139.81,9.97538127]
[1720828572704,16.5654,139.85,139.81,9.97538127]
[1720828572901,16.5654,139.85,139.83,9.97538127]
[1720828575813,11.56,139.85,139.83,9.97538127]
[1720828577024,11.56,139.85,139.81,9.97538127]
[1720828577227,8.35534705,139.9,139.84,21.53538127]
[1720828577430,12.4338885,139.9,139.86,9.97538127]
[1720828577813,0.8738885,139.9,139.86,9.97538127]
[1720828578032,12.4338885,139.9,139.86,9.97538127]
[1720828579021,5.8773885,139.9,139.88,9.97538127]
[1720828579221,17.4373885,139.9,139.88,9.97538127]
[1720828582748,5.0039,139.89,139.88,9.97538127]
[1720828582944,5.0039,139.89,139.86,9.97538127]
[1720828586728,16.5639,139.89,139.86,9.97538127]
[1720828588346,5.0043,139.88,139.86,9.97538127]
[1720828588557,16.564,139.89,139.84,21.53538127]
[1720828588845,16.564,139.89,139.86,9.97538127]
[1720828588846,5.004,139.89,139.86,9.97538127]
[1720828590251,16.564,139.89,139.86,9.97538127]
[1720828594240,11.56,139.88,139.86,9.97538127]
[1720828594429,16.5643,139.88,139.86,9.97538127]
[1720828599842,11.56,139.88,139.86,9.97538127]
[1720828600651,0.8738885,139.9,139.86,21.53538127]
[1720828600853,0.8738885,139.9,139.88,9.97538127]
[1720828604142,0.8738885,139.9,139.89,12.98959682]
[1720828604465,0.8738885,139.9,139.89,11.56]
[1720828606171,0.8738885,139.9,139.88,26.41848127]
[1720828606344,0.8738885,139.9,139.88,37.97848127]
[1720828608755,0.8738885,139.9,139.89,11.56]
[1720828609269,0.8738885,139.9,139.88,26.41848127]
[1720828609474,0.8738885,139.9,139.89,11.56]
[1720828620373,0.8738885,139.9,139.88,9.97538127]
[1720828622370,0.8738885,139.9,139.88,21.53538127]
[1720828625957,0.8738885,139.9,139.88,9.97538127]
[1720828627775,0.8738885,139.9,139.88,21.53538127]
[1720828636778,0.8738885,139.9,139.88,9.97538127]
[1720828644395,0.8738885,139.9,139.88,9.94420847]
[1720828660914,0.8738885,139.9,139.82,6.1839]
[1720828661103,34.0410885,139.9,139.86,9.94420847]
[1720828662917,29.0373885,139.9,139.86,9.94420847]
[1720828663292,17.4773885,139.9,139.86,9.94420847]
[1720828663492,29.0373885,139.9,139.86,9.94420847]
[1720828664399,17.4773885,139.9,139.86,9.94420847]
[1720828664617,34.0408885,139.9,139.86,9.94420847]
[1720828665027,11.56,139.89,139.84,9.94420847]
[1720828665321,16.5639,139.89,139.84,21.50420847]
[1720828665826,11.56,139.89,139.84,21.50420847]
[1720828666194,29.0373885,139.9,139.84,21.50420847]
[1720828666620,29.0373885,139.9,139.85,11.56]
[1720828667001,29.0373885,139.9,139.86,9.94420847]
[1720828668019,34.0408885,139.9,139.88,9.94420847]
[1720828671926,22.4808885,139.9,139.88,9.94420847]
[1720828672124,34.0408885,139.9,139.88,9.94420847]
[1720828672300,34.0408885,139.9,139.86,9.94420847]
[1720828672511,39.0373885,139.9,139.86,9.94420847]
[1720828672706,11.56,139.89,139.86,9.94420847]
[1720828675706,29.0373885,139.9,139.86,9.94420847]
[1720828678517,11.56,139.89,139.86,9.94420847]
[1720828678721,11.56,139.88,139.86,9.94420847]
[1720828680832,11.56,139.89,139.86,9.94420847]
[1720828684666,27.4773885,139.9,139.86,9.94420847]
[1720828684954,11.56,139.89,139.86,9.94420847]
[1720828685138,17.4773885,139.9,139.88,9.94420847]
[1720828685326,29.0373885,139.9,139.88,9.94420847]
[1720828688146,11.56,139.89,139.86,9.94420847]
[1720828688741,11.56,139.88,139.86,9.94420847]
[1720828689231,11.56,139.89,139.86,9.94420847]
[1720828689646,11.56,139.89,139.88,9.94420847]
[1720828689845,17.4773885,139.9,139.88,9.94420847]
[1720828690028,11.56,139.89,139.88,9.94420847]
[1720828691030,11.56,139.89,139.86,9.94420847]
[1720828695738,29.0373885,139.9,139.86,9.94420847]
[1720828698662,12.4338885,139.9,139.88,9.94420847]